bitfinex-derivatives/quotes_ETHF0:USTF0_20210111
["timestamp","ask_amount","ask_price","bid_price","bid_amount"]
[1610393604669,70.68380025,950.03,949.75,4.00959]
[1610393605070,70.68343775,950.1,949.75,4.00959]
[1610393605270,70.67989323,950.13,949.75,4.00959]
[1610393605671,70.66175842,950.32,949.75,4.00959]
[1610393605871,70.66175842,950.32,950.31,4.00959]
[1610393606071,70.65902979,950.36,950.31,4.00959]
[1610393606274,70.65742228,950.39,950.31,4.00959]
[1610393606671,70.65489794,950.4,950.31,4.00959]
[1610393606873,2.11752941,950.4,950.31,4.00959]
[1610393607074,70.65417054,950.45,950.31,4.00959]
[1610393607271,20.53340712,951.55,949.54,72.6959]
[1610393607272,70.6437317,950.51,949.54,72.6959]
[1610393607570,3.84944501,951.18,949.54,72.6959]
[1610393607571,70.64380061,950.57,949.54,72.6959]
[1610393607971,70.64380061,950.57,949.42,2.269]
[1610393607972,70.63562168,950.69,949.42,2.269]
[1610393608172,70.63812531,950.66,949.42,2.269]
[1610393608371,72.56312531,950.66,949.42,2.269]
[1610393608572,70.63939801,950.53,949.42,2.269]
[1610393608772,70.63939801,950.53,949.75,15.0]
[1610393608971,70.64510954,950.49,949.75,15.0]
[1610393609172,70.64724306,950.5,949.75,15.0]
[1610393609572,70.6501267,950.39,949.75,15.0]
[1610393609773,68.57592993,950.32,949.75,15.0]
[1610393609972,70.66157257,950.32,949.96,4.00959]
[1610393610172,70.66245749,950.34,949.96,4.00959]
[1610393610573,70.66367203,950.35,949.96,4.00959]
[1610393611173,1.711,950.39,949.96,4.00959]
[1610393611774,70.65675527,950.38,949.96,4.00959]
[1610393611974,70.65675527,950.38,949.75,15.0]
[1610393612175,1.711,950.39,949.75,15.0]
[1610393612576,70.65890294,950.38,949.75,15.0]
[1610393612775,1.711,950.39,949.75,15.0]
[1610393612975,2.0942,950.38,949.75,15.0]
[1610393613177,1.711,950.39,949.75,15.0]
[1610393613377,70.66406724,950.32,949.75,15.0]
[1610393613781,70.66324764,950.3,949.75,15.0]
[1610393614083,70.66363773,950.28,949.91,4.00959]
[1610393614482,70.6624959,950.26,949.91,4.00959]
[1610393614883,1.711,950.39,949.91,4.00959]
[1610393615085,70.65522804,950.43,949.91,4.00959]
[1610393615282,70.65736911,950.42,949.91,4.00959]
[1610393615482,72.55336911,950.42,949.75,15.0]
[1610393615684,1.896,950.42,949.75,15.0]
[1610393615883,4.00959,950.11,949.97,4.00959]
[1610393616184,70.65572786,950.38,949.97,4.00959]
[1610393616485,70.65680257,950.37,949.75,15.0]
[1610393616886,72.54951514,950.42,949.75,15.0]
[1610393617284,1.896,950.42,949.75,15.0]
[1610393617684,70.64610008,950.54,949.75,15.0]
[1610393617885,70.64169848,950.64,950.53,4.00959]
[1610393618285,25.66864368,951.35,950.53,4.00959]
[1610393618286,70.62709642,950.84,950.53,4.00959]
[1610393618486,70.61196766,951.08,950.53,4.00959]
[1610393618887,70.60549124,951.26,950.53,4.00959]
[1610393619085,70.59811524,951.29,950.53,4.00959]
[1610393619485,70.6077445,951.23,950.53,4.00959]
[1610393619686,72.5287445,951.23,950.53,4.00959]
[1610393619886,70.61289475,951.12,950.85,4.00959]
[1610393620086,1.921,951.23,950.22,1.757]
[1610393620087,70.62264761,950.96,950.22,1.757]
[1610393620286,72.79964761,950.96,950.22,1.757]
[1610393620486,70.62288313,950.86,950.22,1.757]
[1610393620688,70.62335085,950.95,949.97,1.638]
[1610393620888,70.62335085,950.95,949.98,2.1255]
[1610393621088,2.177,950.96,949.98,2.1255]
[1610393621890,70.58712367,951.43,950.95,4.00959]
[1610393622091,70.59134708,951.48,950.95,4.00959]
[1610393622393,70.58128761,951.51,950.95,4.00959]
[1610393622793,70.57582601,951.59,950.95,4.00959]
[1610393622994,24.11281968,951.59,950.95,4.00959]
[1610393623193,70.5508635,951.78,950.95,5.84459]
[1610393623392,70.51807368,952.33,951.22,77.5288]
[1610393623592,70.51807368,952.33,951.22,79.6488]
[1610393623794,70.51340546,952.54,951.22,79.6488]
[1610393623993,70.50259801,952.66,952.53,4.00959]
[1610393624397,69.59641992,952.73,952.53,4.00959]
[1610393624593,69.21661992,952.73,952.53,4.00959]
[1610393624794,53.51445924,952.87,952.53,4.00959]
[1610393625195,53.50871282,952.93,952.53,4.00959]
[1610393625394,53.50850679,953.05,952.53,4.00959]
[1610393625794,49.01537704,953.16,952.53,4.00959]
[1610393625994,49.01537704,953.16,953.15,4.00959]
[1610393626195,1.8392,953.16,953.15,4.00959]
[1610393626394,31.07916793,953.23,953.15,4.00959]
[1610393626594,12.75336793,953.23,953.15,4.00959]
[1610393626794,6.33438403,953.3,953.15,4.00959]
[1610393626994,5.67418403,953.3,953.15,4.00959]
[1610393627196,25.59986919,954.09,953.15,4.00959]
[1610393627197,2.24572381,953.41,953.15,4.00959]
[1610393627396,2.55911792,953.5,953.15,4.00959]
[1610393627596,19.19978222,953.64,953.15,4.00959]
[1610393627798,19.19721086,953.73,953.15,4.00959]
[1610393627996,19.19786605,953.88,953.72,4.00959]
[1610393628396,3.83812091,953.73,953.72,4.00959]
[1610393628595,5.47412091,953.73,953.72,4.00959]
[1610393629196,1.636,953.73,953.72,4.00959]
[1610393632997,1.636,953.73,952.73,72.0911]
[1610393632998,4.87376762,953.73,952.73,72.0911]
[1610393633400,3.83766473,953.72,952.73,72.0911]
[1610393633601,19.19419477,953.7,952.73,72.0911]
[1610393634002,19.19631335,953.63,952.73,72.0911]
[1610393634407,3.83766473,953.72,952.73,72.0911]
[1610393634802,1.036,953.73,952.73,72.0911]
[1610393635006,16.63302513,953.88,952.73,72.0911]
[1610393635304,16.6324777,953.83,952.73,72.0911]
[1610393636006,21.11137192,953.93,953.58,4.00959]
[1610393636203,21.11229561,953.81,953.58,4.00959]
[1610393636604,2.006,953.81,953.58,4.00959]
[1610393637907,0.0259,953.81,953.58,4.00959]
[1610393638105,0.0259,953.81,953.8,4.00959]
[1610393638714,62.0294512,954.15,953.8,4.00959]
[1610393638907,62.02676901,954.24,953.8,4.00959]
[1610393639117,62.02378958,954.35,953.8,4.00959]
[1610393639508,62.01699017,954.44,953.8,4.00959]
[1610393639917,55.88611721,954.46,953.94,61.715]
[1610393640116,19.17409495,954.52,953.62,2.0707]
[1610393640117,53.04826796,954.52,954.45,14.38809]
[1610393640325,49.73536796,954.52,954.45,14.38809]
[1610393640517,41.53787144,955.0,954.45,14.38809]
[1610393640920,41.53125618,955.12,954.45,14.38809]
[1610393641109,14.05447338,955.12,954.45,14.38809]
[1610393641309,41.28259735,955.34,954.45,14.38809]
[1610393641714,33.67789735,955.34,954.45,4.00959]
[1610393641915,24.91693408,955.38,954.45,4.00959]
[1610393642131,24.91544234,955.51,955.37,4.00959]
[1610393642522,24.91143842,955.57,955.37,4.00959]
[1610393643315,24.90742784,955.7,955.37,4.00959]
[1610393643518,24.91065969,955.57,955.37,4.00959]
[1610393643716,27.14465969,955.57,955.37,4.00959]
[1610393643916,24.91224937,955.44,954.34,58.7478]
[1610393644115,24.91224937,955.44,955.34,4.00959]
[1610393644315,24.91473588,955.38,955.34,4.00959]
[1610393644717,24.91510693,955.39,955.34,4.00959]
[1610393644914,24.91363179,955.4,955.34,4.00959]
[1610393645415,24.91339913,955.45,955.34,4.00959]
[1610393645617,24.91204774,955.54,955.34,4.00959]
[1610393646015,2.234,955.57,955.53,4.00959]
[1610393646715,24.90692307,955.73,955.53,4.00959]
[1610393646916,24.9055255,955.84,955.53,4.00959]
[1610393647315,10.53466396,955.93,955.53,4.00959]
[1610393647716,19.14466964,956.14,955.53,4.00959]
[1610393647916,2.55192346,956.01,955.53,4.00959]
[1610393648118,2.55192346,956.01,956.0,4.00959]
[1610393648316,2.256,956.02,956.0,4.00959]
[1610393648716,19.14330683,956.23,956.0,4.00959]
[1610393648916,2.5514974,956.31,956.0,4.00959]
[1610393649318,2.55081103,956.44,956.0,4.00959]
[1610393649516,17.68835736,956.63,956.0,4.00959]
[1610393649719,8.67755736,956.63,956.0,4.00959]
[1610393649918,1.57357249,956.62,956.0,4.00959]
[1610393650118,1.514,956.62,956.61,4.00959]
[1610393650318,0.5128,956.62,956.61,4.00959]
[1610393650518,8.93235734,956.69,956.61,4.00959]
[1610393650721,2.04315734,956.69,956.26,85.7815]
[1610393650920,0.0641,956.69,956.26,85.7815]
[1610393651320,0.0641,956.69,956.27,2.0698]
[1610393651521,11.47716566,956.89,956.27,4.5148]
[1610393651722,9.3944727,957.15,956.27,4.5148]
[1610393651920,7.3131727,957.15,956.27,4.5148]
[1610393652120,15.8471116,957.18,957.14,4.00959]
[1610393652319,24.21785045,957.77,957.14,4.00959]
[1610393652723,23.99530827,958.01,957.14,6.49559]
[1610393652922,25.48687314,958.48,957.14,6.49559]
[1610393653325,25.48679197,958.5,957.3,72.9346]
[1610393653523,25.48679197,958.5,957.15,2.0828]
[1610393653724,27.40579197,958.5,957.31,73.086]
[1610393653925,1.919,958.5,957.31,73.086]
[1610393654125,1.919,958.5,958.49,4.00959]
[1610393654724,0.8394,958.5,958.49,4.00959]
[1610393655325,8.3386847,960.34,958.49,4.00959]
[1610393655326,25.48251848,959.03,958.49,4.00959]
[1610393655523,25.48251848,959.03,958.49,15.02859]
[1610393655727,25.48170717,959.1,958.49,15.02859]
[1610393655927,25.47948177,959.28,958.55,79.3753]
[1610393656131,20.87388177,959.28,958.55,79.3753]
[1610393656326,26.75183831,959.86,959.27,4.00959]
[1610393656527,26.74687645,959.88,958.57,65.5259]
[1610393656726,26.75398437,959.91,958.57,65.5259]
[1610393657127,26.75069794,959.78,958.57,65.5259]
[1610393657328,26.75026128,959.75,958.57,65.5259]
[1610393657726,26.7508289,959.76,958.57,65.5259]
[1610393657927,2.288,959.78,958.57,65.5259]
[1610393658328,2.288,959.78,958.75,4.00959]
[1610393659428,2.288,959.78,958.57,65.5259]
[1610393659829,12.86893743,958.6,958.58,2.0997]
[1610393660029,26.87711314,958.6,958.58,87.2256]
[1610393660230,26.87759734,958.72,958.59,4.00959]
[1610393660631,26.87727929,958.75,958.59,4.00959]
[1610393661033,21.7841218,958.87,958.59,4.00959]
[1610393661431,2.113,959.15,958.59,4.00959]
[1610393661630,21.77340117,959.11,958.59,4.00959]
[1610393661832,19.66040117,959.11,958.59,4.00959]
[1610393662030,26.8614462,959.14,958.59,4.00959]
[1610393662229,26.8614462,959.14,958.58,87.2256]
[1610393662230,2.113,959.15,959.13,4.00959]
[1610393662829,26.85821107,959.19,959.13,4.00959]
[1610393663030,24.77297536,959.22,959.13,14.76239]
[1610393663330,17.94279214,959.6,959.14,2.0979]
[1610393663530,17.17279214,959.6,959.14,2.0979]
[1610393663732,4.19168114,959.54,959.14,2.0979]
[1610393664131,2.03466496,959.55,959.13,14.76239]
[1610393664331,1.05181846,959.9,959.54,4.00959]
[1610393664531,1.25587738,959.68,959.54,4.00959]
[1610393664732,1.87,960.3,959.67,83.7272]
[1610393665133,0.8218,960.3,959.67,83.7272]
[1610393665334,2.0552,960.82,959.67,83.7272]
[1610393665534,2.062,961.74,959.67,83.7272]
[1610393665535,24.14580521,960.95,959.67,83.7272]
[1610393665734,24.14373398,960.9,959.62,2.407]
[1610393665933,26.31173398,960.9,959.62,2.407]
[1610393666134,24.14780371,960.7,959.62,2.407]
[1610393666335,4.00959,960.55,959.76,4.00959]
[1610393666735,24.15358485,960.47,959.76,4.00959]
[1610393666933,1.865,960.47,959.76,4.00959]
[1610393667736,2.0581,960.46,959.76,4.00959]
[1610393668335,2.0581,960.46,960.45,4.00959]
[1610393668735,2.343,960.7,960.45,4.00959]
[1610393668936,24.14269309,960.97,960.45,5.72559]
[1610393669137,24.13733086,961.11,960.45,5.72559]
[1610393669337,5.9616,961.04,960.45,5.72559]
[1610393669639,3.8857,961.04,960.46,2.0608]
[1610393670238,3.8857,961.04,961.03,4.00959]
[1610393672541,13.965897,961.18,961.03,4.00959]
[1610393672741,13.96266409,961.36,961.03,4.00959]
[1610393673141,13.96225521,961.38,961.03,4.00959]
[1610393673342,13.96115934,961.48,961.03,4.00959]
[1610393673842,13.95764868,961.57,961.03,4.00959]
[1610393674243,2.048,963.14,961.0,1.708]
[1610393674244,13.95573959,961.77,961.56,4.00959]
[1610393674443,13.95364623,961.74,961.56,4.00959]
[1610393674843,16.48858108,962.13,961.56,4.00959]
[1610393675243,16.48609802,962.2,961.56,4.00959]
[1610393675443,2.0934,962.19,961.57,2.1056]
[1610393675644,16.48585008,962.27,961.57,2.1056]
[1610393675843,16.48518238,962.28,961.57,3.7436]
[1610393676044,16.48518238,962.28,961.57,1.638]
[1610393676247,16.48645186,962.25,961.57,1.638]
[1610393676444,16.48673866,962.14,961.57,1.638]
[1610393676845,16.48823122,962.05,961.57,1.638]
[1610393677247,16.49208323,961.96,961.57,1.638]
[1610393677447,18.83708323,961.96,961.58,2.0865]
[1610393677649,16.49520375,961.59,961.0,1.708]
[1610393677847,16.49520375,961.59,959.96,0.95128049]
[1610393677848,19.03338697,961.68,960.04,0.31711741]
[1610393678047,19.03338697,961.68,960.45,1.976]
[1610393678248,16.49578974,961.47,960.45,1.976]
[1610393678648,16.49554267,961.69,960.45,1.976]
[1610393678848,2.0839,961.68,960.45,1.976]
[1610393679151,2.0839,961.68,960.56,0.31699732]
[1610393679552,2.0839,961.68,960.66,0.31699643]
[1610393679754,2.0839,961.68,960.67,2.1011]
[1610393679948,16.4880885,962.2,960.76,0.31695672]
[1610393680152,16.48568586,962.26,960.82,0.31691053]
[1610393680348,16.48568586,962.26,962.25,4.00959]
[1610393680556,16.48314805,962.37,962.25,4.00959]
[1610393680758,16.48400388,962.39,962.25,4.00959]
[1610393681151,16.48620129,962.35,962.25,4.00959]
[1610393681551,16.4827647,962.43,962.25,4.00959]
[1610393681752,16.48166404,962.48,962.25,4.00959]
[1610393682157,16.48166363,962.51,962.25,4.00959]
[1610393682363,16.48166363,962.51,962.5,4.00959]
[1610393682557,25.35299354,963.38,962.5,4.00959]
[1610393682558,16.48205565,962.53,962.5,4.00959]
[1610393682752,16.48006535,962.58,962.5,4.00959]
[1610393683152,16.4792381,962.63,962.5,4.00959]
[1610393683351,16.47759735,962.75,962.5,4.00959]
[1610393684256,16.47717966,962.91,962.74,4.00959]
[1610393684453,16.47363341,963.02,962.74,4.00959]
[1610393684854,16.47142599,963.3,962.74,4.00959]
[1610393685255,14.49932821,963.38,962.84,71.0733]
[1610393685454,3.63232821,963.38,962.84,71.0733]
[1610393685655,8.36621774,963.87,962.74,6.46459]
[1610393685855,24.03726564,965.22,963.48,74.4361]
[1610393686055,24.03726564,965.22,963.48,76.3681]
[1610393686255,7.70693725,965.09,963.65,0.31617462]
[1610393686455,7.70693725,965.09,963.97,0.31609285]
[1610393686655,1.69,965.5,963.97,1.97109285]
[1610393686858,1.69,965.5,963.97,1.655]
[1610393687257,25.72123587,965.5,963.97,1.655]
[1610393687658,24.02873052,965.48,963.97,1.655]
[1610393687856,1.69,965.5,963.97,1.655]
[1610393688358,4.00959,965.32,963.97,1.655]
[1610393688959,24.0282817,965.3,963.97,1.655]
[1610393689159,26.0522817,965.3,963.97,1.655]
[1610393689361,24.03117572,965.19,963.97,1.655]
[1610393689760,24.03268056,965.15,963.97,1.655]
[1610393689959,24.03487773,965.17,963.97,1.655]
[1610393690261,24.03459879,965.21,964.77,4.00959]
[1610393690665,2.024,965.3,964.77,4.00959]
[1610393691267,26.05742563,965.3,964.77,4.00959]
[1610393691467,24.0348497,965.1,963.97,1.655]
[1610393691768,1.75,965.1,963.94,66.3766]
[1610393692370,1.75,965.1,964.56,4.00959]
[1610393692970,24.03357721,965.32,964.56,5.99859]
[1610393693170,24.02801271,965.54,964.56,5.99859]
[1610393693484,25.29393,965.89,964.56,5.99859]
[1610393693871,25.29503129,965.76,964.56,5.99859]
[1610393694071,21.50135443,965.13,964.56,5.99859]
[1610393694272,21.50135443,965.13,965.12,4.00959]
[1610393694474,24.03095122,965.31,965.12,4.00959]
[1610393695075,24.03095122,965.31,964.56,1.989]
[1610393695076,21.50037963,965.26,964.56,1.989]
[1610393695275,13.91414463,964.61,964.56,1.989]
[1610393695675,1.918,965.34,964.56,1.989]
[1610393695676,13.91561748,964.57,964.56,1.989]
[1610393695886,16.44458022,964.77,964.56,1.989]
[1610393696076,16.44507293,964.76,964.56,1.989]
[1610393696282,16.44343386,964.81,964.56,1.989]
[1610393696476,16.44343386,964.81,964.75,4.00959]
[1610393696685,16.44326885,964.91,964.75,4.00959]
[1610393697078,16.44304589,965.02,964.75,4.00959]
[1610393697276,16.44090828,965.06,964.75,4.00959]
[1610393697676,16.43843279,965.23,964.75,4.00959]
[1610393697878,16.4377179,965.32,964.75,4.00959]
[1610393698476,18.96599347,965.42,965.31,4.00959]
[1610393698882,16.4356592,965.38,965.31,4.00959]
[1610393699077,16.4319631,965.57,965.31,4.00959]
[1610393699476,16.4307633,965.67,965.31,4.00959]
[1610393699877,2.0825,967.84,965.31,4.00959]
[1610393699878,16.42709718,965.89,965.31,4.00959]
[1610393700278,16.42695061,965.87,965.31,4.00959]
[1610393700477,25.26883098,966.74,965.17,2.109]
[1610393700478,18.95256196,966.04,965.86,4.00959]
[1610393700878,16.34216784,966.21,965.86,4.00959]
[1610393701077,21.47748821,966.4,965.92,66.1389]
[1610393701279,21.47187828,966.72,965.92,68.4589]
[1610393701483,23.9870179,967.3,965.92,68.4589]
[1610393701876,23.98486528,967.4,965.92,68.4589]
[1610393702279,6.0332,968.55,965.92,68.4589]
[1610393702280,23.97406395,967.41,965.92,68.4589]
[1610393702477,23.97406395,967.41,967.4,4.00959]
[1610393702677,23.97322764,967.81,966.74,2.139]
[1610393703077,23.97333349,967.82,966.74,2.139]
[1610393703277,23.97335009,967.74,966.74,2.139]
[1610393703477,24.15245009,967.74,966.74,2.139]
[1610393703677,0.8357,967.74,966.74,2.139]
[1610393704077,25.22594108,968.32,966.75,2.0573]
[1610393704291,25.22277365,968.63,966.75,2.0573]
[1610393704678,25.21947107,968.58,966.74,2.139]
[1610393704884,26.88747107,968.58,966.74,2.139]
[1610393705080,1.668,968.58,966.74,2.139]
[1610393705283,25.22335722,968.49,966.74,2.139]
[1610393705694,25.22287712,968.5,966.74,2.139]
[1610393705891,25.22735243,968.42,966.74,2.139]
[1610393706280,25.22855231,968.39,966.74,2.139]
[1610393706479,25.22855231,968.39,968.06,4.00959]
[1610393706681,25.22855231,968.39,967.26,2.231]
[1610393706881,25.22856559,968.33,967.26,2.231]
[1610393707085,27.02656559,968.33,967.26,2.231]
[1610393707281,25.22991578,968.28,967.26,2.231]
[1610393707683,25.2319024,968.23,967.26,2.231]
[1610393707882,1.798,968.33,966.74,2.139]
[1610393708091,1.798,968.33,966.71,61.6972]
[1610393708282,1.798,968.33,966.72,2.0466]
[1610393708479,1.798,968.33,968.32,4.00959]
[1610393710089,25.21195221,969.01,968.32,4.00959]
[1610393710293,25.20553028,969.15,968.32,4.00959]
[1610393710481,25.20553028,969.15,969.02,4.00959]
[1610393710883,25.20780917,969.19,969.02,4.00959]
[1610393711282,26.46788461,969.67,969.02,4.00959]
[1610393711283,25.199856,969.35,969.02,4.00959]
[1610393711685,25.19897031,969.55,969.02,4.00959]
[1610393712286,25.19603696,969.6,969.02,4.00959]
[1610393712484,25.19598656,969.56,969.37,4.00959]
[1610393712684,27.64498656,969.56,969.37,4.00959]
[1610393712885,25.19714077,969.52,969.37,4.00959]
[1610393713290,25.19688165,969.51,969.37,4.00959]
[1610393713484,25.19578029,969.54,969.37,4.00959]
[1610393713884,2.449,969.56,969.37,4.00959]
[1610393714586,23.93303992,969.54,969.49,4.00959]
[1610393714985,23.93459258,969.53,969.49,4.00959]
[1610393715188,2.449,969.56,969.49,4.00959]
[1610393715589,23.93235668,969.53,969.49,4.00959]
[1610393715789,23.93189401,969.61,968.81,1.85]
[1610393716191,23.93586961,969.56,968.81,1.85]
[1610393716390,2.0533,969.55,968.81,1.85]
[1610393716591,4.00959,968.82,968.23,4.00959]
[1610393717191,4.00959,968.82,967.7,59.9746]
[1610393717391,4.00959,968.82,967.58,2.0831]
[1610393717594,4.00959,968.82,967.31,0.31493043]
[1610393717992,4.00959,968.82,967.18,0.314853]
[1610393718291,4.00959,968.82,967.17,0.3148552]
[1610393718492,1.896,968.92,967.17,0.3148552]
[1610393718692,1.896,968.92,967.25,3.8059]
[1610393719098,1.896,968.92,967.42,84.9235]
[1610393719299,4.00959,969.03,967.42,84.9235]
[1610393719599,4.00959,969.03,967.42,85.23829581]
[1610393719799,23.93077766,969.45,967.42,85.23829581]
[1610393720000,23.92778303,969.53,967.5,0.31475642]
[1610393720201,23.92833313,969.5,967.5,1.64]
[1610393720604,23.92902795,969.51,967.5,1.64]
[1610393721002,23.92850853,969.58,967.55,0.31476596]
[1610393721200,23.92850853,969.58,967.56,2.0969]
[1610393721602,23.92885246,969.61,967.57,0.31477049]
[1610393722003,23.93050243,969.52,967.56,2.0969]
[1610393722504,4.00959,969.19,968.76,4.00959]
[1610393722704,2.09,969.19,968.76,4.00959]
[1610393723705,1.995,970.29,968.76,4.00959]
[1610393723706,23.91345784,970.17,968.76,4.00959]
[1610393723908,1.995,970.29,968.76,6.40359]
[1610393724607,4.00959,970.28,969.81,4.00959]
[1610393725409,4.00959,970.28,969.31,60.425]
[1610393726309,1.995,970.29,969.31,60.425]
[1610393726509,4.00959,970.13,969.93,4.00959]
[1610393727112,1.995,970.29,969.93,4.00959]
[1610393728511,1.995,970.29,969.54,1.686]
[1610393728512,4.00959,970.48,970.28,4.00959]
[1610393728910,4.00959,970.48,969.54,1.686]
[1610393729112,6.42259,970.48,969.54,1.686]
[1610393729923,6.42259,970.48,969.31,2.097]
[1610393730316,6.42259,970.48,968.76,2.394]
[1610393730515,2.413,970.48,969.23,4.00959]
[1610393730714,23.90973205,970.27,969.06,1.901]
[1610393730934,23.91090419,970.17,969.06,1.901]
[1610393731320,23.91433337,970.16,969.06,1.901]
[1610393731516,2.0874,970.15,969.06,1.901]
[1610393731716,32.1681555,970.19,968.49,59.9368]
[1610393731919,32.1681555,970.19,968.49,61.7058]
[1610393731920,23.91410497,970.19,968.49,61.7058]
[1610393732116,23.91436371,970.21,968.49,61.7058]
[1610393732418,23.91371572,970.24,968.49,61.7058]
[1610393732616,4.00959,970.03,969.49,4.00959]
[1610393732816,6.03559,970.03,969.49,4.00959]
[1610393733817,2.026,970.03,969.49,4.00959]
[1610393734620,2.026,970.03,970.02,4.00959]
[1610393734821,2.323,970.27,970.02,4.00959]
[1610393736018,4.00959,970.43,970.02,4.00959]
[1610393736221,4.00959,970.43,969.31,65.0689]
[1610393736418,2.0573,970.42,969.25,1.931]
[1610393736619,4.00959,969.71,969.58,4.00959]
[1610393736818,4.00959,969.71,969.25,1.931]
[1610393737417,2.211,969.96,969.25,1.931]
[1610393737819,2.211,969.96,969.0,1.54]
[1610393738718,4.00959,969.93,969.0,1.54]
[1610393740627,4.00959,969.33,969.0,1.54]
[1610393740829,4.00959,969.33,968.29,0.31455745]
[1610393741027,6.10159,969.33,968.29,0.31455745]
[1610393741228,6.10159,969.33,968.0,1.2582298]
[1610393741229,2.092,969.33,968.0,0.31461163]
[1610393741629,2.092,969.33,968.07,0.3145874]
[1610393741828,2.092,969.33,968.14,0.31458017]
[1610393742028,1.747,969.66,968.14,0.31458017]
[1610393742229,1.747,969.66,968.19,0.31456703]
[1610393742629,4.00959,969.46,969.12,4.00959]
[1610393742830,1.747,969.66,969.12,4.00959]
[1610393744633,1.747,969.66,968.84,1.878]
[1610393745431,2.211,969.96,968.84,1.878]
[1610393745632,6.0828,970.64,968.84,1.878]
[1610393746734,4.00959,970.25,968.84,1.878]
[1610393746934,6.04959,970.25,968.84,1.878]
[1610393747340,2.04,970.25,968.84,1.878]
[1610393748136,2.04,970.25,968.82,0.31433927]
[1610393748639,2.04,970.25,968.78,0.31434203]
[1610393748640,4.00959,970.22,968.78,0.31434203]
[1610393749039,4.00959,970.22,968.75,0.31432927]
[1610393749239,4.00959,970.22,968.76,0.31433796]
[1610393749439,4.00959,970.22,968.76,2.04933796]
[1610393749640,4.00959,970.22,968.8,0.31432479]
[1610393749840,2.04,970.25,968.8,0.31432479]
[1610393750041,2.04,970.25,968.78,0.31431936]
[1610393750241,2.04,970.25,969.06,67.337]
[1610393750442,2.04,970.25,969.22,0.31423603]
[1610393750641,2.04,970.25,970.24,4.00959]
[1610393751444,6.2824,971.25,970.24,4.00959]
[1610393752242,2.0425,971.24,970.24,4.00959]
[1610393752443,4.0295,971.24,970.24,4.00959]
[1610393752643,4.0295,971.24,969.85,2.044]
[1610393752644,4.00959,971.2,971.11,4.00959]
[1610393752842,4.00959,971.2,970.17,77.4371]
[1610393753744,1.987,971.24,970.17,77.4371]
[1610393754742,1.987,971.24,971.23,4.00959]
[1610393755144,1.987,971.24,970.17,77.4371]
[1610393755543,1.987,971.24,970.13,1.808]
[1610393756346,85.4497,971.2,969.85,2.044]
[1610393756545,85.4497,971.2,969.63,0.31409493]
[1610393756745,4.00959,969.86,969.41,0.31412312]
[1610393757145,4.00959,969.86,969.38,0.31420414]
[1610393757545,4.00959,969.86,969.13,0.62854653]
[1610393757746,4.00959,969.86,969.14,0.62857065]
[1610393758145,4.00959,969.86,969.04,0.94285597]
[1610393758146,2.049,969.91,969.1,0.62859513]
[1610393758546,2.049,969.91,969.15,0.62855384]
[1610393758746,6.05859,969.91,969.83,4.00959]
[1610393758947,6.05859,969.91,969.1,0.62856019]
[1610393759147,6.05859,969.91,969.0,0.62858906]
[1610393759347,6.05859,969.91,968.95,0.62861139]
[1610393759747,6.05859,969.91,968.86,2.44]
[1610393760652,4.00959,969.59,968.86,2.44]
[1610393761456,4.00959,969.59,968.62,0.628779]
[1610393761654,4.00959,969.59,824.24,0.22360537]
[1610393761655,4.00959,969.59,968.64,0.62877279]
[1610393761856,4.00959,969.59,968.58,0.6287366]
[1610393762056,4.00959,969.59,968.64,2.32]
[1610393762557,4.00959,969.59,968.71,0.62871411]
[1610393762757,4.00959,969.46,968.71,0.62871411]
[1610393762957,4.00959,969.46,968.66,0.62873207]
[1610393763559,4.00959,969.46,968.64,2.32]
[1610393764560,4.00959,969.46,968.4,0.94315204]
[1610393764760,4.00959,968.41,968.32,0.94320393]